[Event "*** Titled Tuesday Blitz"]
[Site "Chess.com"]
[Date "2020.10.27"]
[Round "2"]
[White "obliviate12"]
[Black "Titus369"]
[Result "0-1"]
[WhiteElo "2723"]
[BlackElo "2512"]
[TimeControl "180+1"]
[EndTime "10:18:46 PDT"]
[Termination "Titus369 won on time"]

1. e4 {[%clk 0:03:00.9]} 1... c5 {[%clk 0:02:59.2]} 2. Nf3 {[%clk 0:03:01.1]}
2... d6 {[%clk 0:02:59.5]} 3. d4 {[%clk 0:03:00.2]} 3... cxd4 {[%clk 0:03:00.4]}
4. Qxd4 {[%clk 0:02:59.1]} 4... a6 {[%clk 0:02:59.8]} 5. Be2 {[%clk 0:02:58.4]}
5... Nc6 {[%clk 0:02:59.1]} 6. Qe3 {[%clk 0:02:58.5]} 6... Nf6 {[%clk
0:02:58.9]} 7. h3 {[%clk 0:02:58.5]} 7... e5 {[%clk 0:02:54.6]} 8. O-O {[%clk
0:02:58.3]} 8... Be6 {[%clk 0:02:53.6]} 9. c4 {[%clk 0:02:41.9]} 9... Be7 {[%clk
0:02:51.6]} 10. Rd1 {[%clk 0:02:41.3]} 10... O-O {[%clk 0:02:50]} 11. Nc3 {[%clk
0:02:40.7]} 11... Rc8 {[%clk 0:02:42.8]} 12. b3 {[%clk 0:02:38.5]} 12... Qc7
{[%clk 0:02:37.4]} 13. Bb2 {[%clk 0:02:26.9]} 13... h6 {[%clk 0:02:20.8]} 14.
Rac1 {[%clk 0:02:25.1]} 14... Qb8 {[%clk 0:02:13.2]} 15. Nd5 {[%clk 0:01:52.5]}
15... Bxd5 {[%clk 0:02:04.3]} 16. exd5 {[%clk 0:01:36.8]} 16... Na7 {[%clk
0:01:54.6]} 17. c5 {[%clk 0:01:36.7]} 17... dxc5 {[%clk 0:01:49.2]} 18. Nxe5
{[%clk 0:01:24.9]} 18... Bd6 {[%clk 0:01:47.3]} 19. Nc4 {[%clk 0:01:25]} 19...
Bf4 {[%clk 0:01:46.2]} 20. Qf3 {[%clk 0:01:23.8]} 20... b5 {[%clk 0:01:35.8]}
21. Bxf6 {[%clk 0:01:14.2]} 21... Bxc1 {[%clk 0:01:18.8]} 22. Rxc1 {[%clk
0:00:47.8]} 22... bxc4 {[%clk 0:01:12.4]} 23. Rxc4 {[%clk 0:00:41.6]} 23... Qd6
{[%clk 0:01:06.3]} 24. Rg4 {[%clk 0:00:33.5]} 24... g6 {[%clk 0:01:05.7]} 25.
Bd3 {[%clk 0:00:20.5]} 25... Kh7 {[%clk 0:01:05.2]} 26. Rh4 {[%clk 0:00:14.4]}
26... Rce8 {[%clk 0:00:58.5]} 27. g3 {[%clk 0:00:14.6]} 27... Re5 {[%clk
0:00:28.9]} 28. Qf4 {[%clk 0:00:08]} 28... Re1+ {[%clk 0:00:28.5]} 29. Kg2
{[%clk 0:00:08.1]} 29... Qxf4 {[%clk 0:00:29]} 30. gxf4 {[%clk 0:00:08.3]} 30...
Nb5 {[%clk 0:00:20.9]} 31. Bg5 {[%clk 0:00:07.7]} 31... h5 {[%clk 0:00:18.5]}
32. Rxh5+ {[%clk 0:00:08]} 32... Kg7 {[%clk 0:00:18.2]} 33. Bh6+ {[%clk
0:00:08]} 33... Kg8 {[%clk 0:00:18.4]} 34. Rg5 {[%clk 0:00:06.5]} 34... Rfe8
{[%clk 0:00:12.9]} 35. Rg3 {[%clk 0:00:05.8]} 35... Nd4 {[%clk 0:00:12.1]} 36.
f5 {[%clk 0:00:06.2]} 36... Kh7 {[%clk 0:00:07.5]} 37. Bd2 {[%clk 0:00:04.6]}
37... Nxf5 {[%clk 0:00:06.5]} 38. Bxf5 {[%clk 0:00:02.9]} 38... gxf5 {[%clk
0:00:07.4]} 39. Bxe1 {[%clk 0:00:03]} 39... Rxe1 {[%clk 0:00:08.3]} 40. Rc3
{[%clk 0:00:03.3]} 40... Rd1 {[%clk 0:00:07.6]} 41. Rxc5 {[%clk 0:00:03.4]}
41... Kg7 {[%clk 0:00:07.5]} 42. Ra5 {[%clk 0:00:04.2]} 42... Rd2 {[%clk
0:00:06.8]} 43. Kf3 {[%clk 0:00:03.7]} 43... f6 {[%clk 0:00:06]} 44. Ke3 {[%clk
0:00:04.1]} 44... Rd1 {[%clk 0:00:06.3]} 45. Ke2 {[%clk 0:00:04.5]} 45... Rd4
{[%clk 0:00:06.4]} 46. Ke3 {[%clk 0:00:03.8]} 46... Rd1 {[%clk 0:00:06.1]} 47.
Rxa6 {[%clk 0:00:02.2]} 47... Rxd5 {[%clk 0:00:05.7]} 0-1

[Event "*** Titled Tuesday Blitz"]
[Site "Chess.com"]
[Date "2020.10.27"]
[Round "2"]
[White "TregubovP"]
[Black "RD4ever"]
[Result "1/2-1/2"]
[WhiteElo "2535"]
[BlackElo "2791"]
[TimeControl "180+1"]
[EndTime "10:18:47 PDT"]
[Termination "Game drawn by stalemate"]

1. e4 {[%clk 0:02:55.1]} 1... e6 {[%clk 0:02:58.5]} 2. d4 {[%clk 0:02:54.5]}
2... d5 {[%clk 0:02:58.8]} 3. exd5 {[%clk 0:02:55.1]} 3... exd5 {[%clk
0:02:59.7]} 4. Nf3 {[%clk 0:02:55.2]} 4... Nc6 {[%clk 0:02:59.8]} 5. h3 {[%clk
0:02:52]} 5... Nf6 {[%clk 0:02:50.5]} 6. Bd3 {[%clk 0:02:41.9]} 6... Bd6 {[%clk
0:02:49.7]} 7. O-O {[%clk 0:02:40.6]} 7... O-O {[%clk 0:02:49.6]} 8. c3 {[%clk
0:02:41.1]} 8... Ne7 {[%clk 0:02:43.4]} 9. Qc2 {[%clk 0:02:39.4]} 9... Ng6
{[%clk 0:02:41]} 10. Bg5 {[%clk 0:02:30.7]} 10... c6 {[%clk 0:02:36.6]} 11. Nbd2
{[%clk 0:02:29.2]} 11... h6 {[%clk 0:02:18.8]} 12. Be3 {[%clk 0:02:28.6]} 12...
Nf4 {[%clk 0:02:17.9]} 13. Bf5 {[%clk 0:02:25.4]} 13... Qc7 {[%clk 0:02:12.2]}
14. Rfe1 {[%clk 0:02:23.9]} 14... Re8 {[%clk 0:01:26.1]} 15. Bxf4 {[%clk
0:02:22.1]} 15... Bxf4 {[%clk 0:01:21.6]} 16. Rxe8+ {[%clk 0:02:21.5]} 16...
Nxe8 {[%clk 0:01:22.5]} 17. Re1 {[%clk 0:02:20.4]} 17... Nd6 {[%clk 0:01:17.1]}
18. Bxc8 {[%clk 0:02:16.6]} 18... Rxc8 {[%clk 0:01:18]} 19. Ne5 {[%clk
0:02:16.4]} 19... Re8 {[%clk 0:01:13.7]} 20. Nf1 {[%clk 0:01:58.6]} 20... Bxe5
{[%clk 0:01:08.6]} 21. dxe5 {[%clk 0:01:36.2]} 21... Nc4 {[%clk 0:01:07.5]} 22.
f4 {[%clk 0:01:34.5]} 22... Qb6+ {[%clk 0:01:04.8]} 23. Kh2 {[%clk 0:01:34.1]}
23... Qxb2 {[%clk 0:01:05.1]} 24. Qxb2 {[%clk 0:01:31.3]} 24... Nxb2 {[%clk
0:01:06]} 25. Rb1 {[%clk 0:01:31.5]} 25... Nd3 {[%clk 0:01:05]} 26. Rxb7 {[%clk
0:01:22.6]} 26... Nxf4 {[%clk 0:01:04.6]} 27. Rxa7 {[%clk 0:01:11.8]} 27... Rxe5
{[%clk 0:01:04.1]} 28. Ng3 {[%clk 0:01:12.2]} 28... h5 {[%clk 0:01:02.8]} 29. h4
{[%clk 0:01:11.2]} 29... g6 {[%clk 0:00:46.7]} 30. Rc7 {[%clk 0:01:07]} 30...
Re1 {[%clk 0:00:30.6]} 31. Rxc6 {[%clk 0:01:02.2]} 31... Ra1 {[%clk 0:00:30.7]}
32. Ra6 {[%clk 0:01:01.4]} 32... Rc1 {[%clk 0:00:30.7]} 33. Ra4 {[%clk
0:00:58.6]} 33... Ne6 {[%clk 0:00:24.1]} 34. Ne2 {[%clk 0:00:47]} 34... Rc2
{[%clk 0:00:23.8]} 35. Nf4 {[%clk 0:00:39.1]} 35... Nxf4 {[%clk 0:00:22]} 36.
Rxf4 {[%clk 0:00:39.5]} 36... Rxc3 {[%clk 0:00:22.5]} 37. Rd4 {[%clk 0:00:28.3]}
37... Rc5 {[%clk 0:00:21.7]} 38. a4 {[%clk 0:00:26.5]} 38... Kg7 {[%clk
0:00:21.8]} 39. Kg3 {[%clk 0:00:26.9]} 39... Kf6 {[%clk 0:00:21.5]} 40. Kf4
{[%clk 0:00:26.4]} 40... Ke6 {[%clk 0:00:22.1]} 41. Rb4 {[%clk 0:00:24.3]} 41...
Kd6 {[%clk 0:00:13.9]} 42. Rb6+ {[%clk 0:00:22.2]} 42... Rc6 {[%clk 0:00:11.7]}
43. Rxc6+ {[%clk 0:00:20.2]} 43... Kxc6 {[%clk 0:00:12.6]} 44. a5 {[%clk
0:00:17.4]} 44... f6 {[%clk 0:00:12.4]} 45. Ke3 {[%clk 0:00:15.6]} 45... g5
{[%clk 0:00:12.2]} 46. Kd4 {[%clk 0:00:09.9]} 46... gxh4 {[%clk 0:00:10.1]} 47.
a6 {[%clk 0:00:10.1]} 47... f5 {[%clk 0:00:09.7]} 48. a7 {[%clk 0:00:10.2]}
48... Kb7 {[%clk 0:00:09.6]} 49. Kxd5 {[%clk 0:00:10.7]} 49... Kxa7 {[%clk
0:00:08.5]} 50. Ke5 {[%clk 0:00:11.2]} 50... h3 {[%clk 0:00:08.7]} 51. gxh3
{[%clk 0:00:09.9]} 51... Kb6 {[%clk 0:00:09.6]} 52. Kxf5 {[%clk 0:00:10.2]}
52... Kc7 {[%clk 0:00:10.2]} 53. Kg5 {[%clk 0:00:10.9]} 53... Kd7 {[%clk
0:00:10.8]} 54. Kxh5 {[%clk 0:00:11.5]} 54... Ke7 {[%clk 0:00:11.4]} 55. Kg6
{[%clk 0:00:12.1]} 55... Kf8 {[%clk 0:00:12.3]} 56. Kh7 {[%clk 0:00:12.4]} 56...
Kf7 {[%clk 0:00:12.8]} 57. h4 {[%clk 0:00:13.1]} 57... Kf8 {[%clk 0:00:13.7]}
58. h5 {[%clk 0:00:13.7]} 58... Kf7 {[%clk 0:00:14.6]} 59. h6 {[%clk 0:00:13.6]}
59... Kf8 {[%clk 0:00:15.5]} 60. Kg6 {[%clk 0:00:13.9]} 60... Kg8 {[%clk
0:00:16.1]} 61. h7+ {[%clk 0:00:14.6]} 61... Kh8 {[%clk 0:00:17]} 62. Kh6 {[%clk
0:00:14.1]} 1/2-1/2

[Event "*** Titled Tuesday Blitz"]
[Site "Chess.com"]
[Date "2020.10.27"]
[Round "2"]
[White "malakismayil"]
[Black "djano"]
[Result "1-0"]
[WhiteElo "2281"]
[BlackElo "2464"]
[TimeControl "180+1"]
[EndTime "10:18:48 PDT"]
[Termination "malakismayil won by resignation"]

1. e4 {[%clk 0:03:00.9]} 1... g6 {[%clk 0:02:58.5]} 2. d4 {[%clk 0:02:59.5]}
2... Bg7 {[%clk 0:02:58.8]} 3. Nc3 {[%clk 0:02:59.2]} 3... a6 {[%clk 0:02:59]}
4. g3 {[%clk 0:02:59]} 4... b6 {[%clk 0:02:59.1]} 5. Bg2 {[%clk 0:02:59]} 5...
Bb7 {[%clk 0:02:59.6]} 6. Nge2 {[%clk 0:02:59.5]} 6... d6 {[%clk 0:03:00.1]} 7.
O-O {[%clk 0:02:59.8]} 7... Nd7 {[%clk 0:03:00.7]} 8. Be3 {[%clk 0:02:57.4]}
8... Ngf6 {[%clk 0:02:58]} 9. h3 {[%clk 0:02:55.7]} 9... e5 {[%clk 0:02:56.6]}
10. d5 {[%clk 0:02:52.4]} 10... O-O {[%clk 0:02:54.2]} 11. Kh2 {[%clk
0:02:47.5]} 11... Rc8 {[%clk 0:02:37.8]} 12. Qd2 {[%clk 0:02:28.9]} 12... Kh8
{[%clk 0:02:27.3]} 13. Bg5 {[%clk 0:02:28.1]} 13... Qe8 {[%clk 0:02:25.9]} 14.
f4 {[%clk 0:02:19.4]} 14... exf4 {[%clk 0:02:26.2]} 15. Qxf4 {[%clk 0:02:20.1]}
15... Nh5 {[%clk 0:02:19.7]} 16. Qd2 {[%clk 0:01:59.3]} 16... Ne5 {[%clk
0:02:18.7]} 17. b3 {[%clk 0:01:53.7]} 17... f6 {[%clk 0:02:12.1]} 18. Be3 {[%clk
0:01:51.5]} 18... f5 {[%clk 0:02:00.1]} 19. exf5 {[%clk 0:01:44.3]} 19... gxf5
{[%clk 0:02:01]} 20. Nd4 {[%clk 0:01:41.7]} 20... Qg6 {[%clk 0:02:00.7]} 21.
Nce2 {[%clk 0:01:28.7]} 21... Rce8 {[%clk 0:01:43.6]} 22. Ne6 {[%clk 0:01:20.5]}
22... Rg8 {[%clk 0:01:17.9]} 23. N6f4 {[%clk 0:01:13.3]} 23... Nxf4 {[%clk
0:01:16.8]} 24. Nxf4 {[%clk 0:01:14.2]} 24... Qf7 {[%clk 0:01:14.9]} 25. Ne6
{[%clk 0:01:07.9]} 25... Qh5 {[%clk 0:01:07.9]} 26. Kg1 {[%clk 0:00:49]} 26...
Bf6 {[%clk 0:01:02.3]} 27. Qf2 {[%clk 0:00:45.8]} 27... Nd7 {[%clk 0:00:41.5]}
28. Rae1 {[%clk 0:00:35.4]} 28... Be5 {[%clk 0:00:41.7]} 29. Bf4 {[%clk
0:00:33.7]} 29... Re7 {[%clk 0:00:26.9]} 30. Bxe5+ {[%clk 0:00:27]} 30... Nxe5
{[%clk 0:00:26.6]} 31. Qf4 {[%clk 0:00:24.2]} 31... Ng6 {[%clk 0:00:14.3]} 32.
Qxf5 {[%clk 0:00:23.6]} 32... Qxf5 {[%clk 0:00:13.6]} 33. Rxf5 {[%clk
0:00:24.5]} 33... Ne5 {[%clk 0:00:12.6]} 34. g4 {[%clk 0:00:22.6]} 34... c5
{[%clk 0:00:11.3]} 35. Ref1 {[%clk 0:00:22]} 35... Bc8 {[%clk 0:00:09]} 36. Rf8
{[%clk 0:00:14.6]} 36... Bxe6 {[%clk 0:00:07.2]} 37. dxe6 {[%clk 0:00:10.6]}
37... Rxf8 {[%clk 0:00:05.9]} 38. Rxf8+ {[%clk 0:00:11.5]} 38... Kg7 {[%clk
0:00:06.6]} 39. Rb8 {[%clk 0:00:10.1]} 39... b5 {[%clk 0:00:05.8]} 40. Bd5
{[%clk 0:00:08.6]} 40... Ng6 {[%clk 0:00:05.5]} 41. Rb6 {[%clk 0:00:08.3]} 41...
Nf4 {[%clk 0:00:05.3]} 42. c4 {[%clk 0:00:08.7]} 42... bxc4 {[%clk 0:00:05]} 43.
bxc4 {[%clk 0:00:09.6]} 43... Nxe6 {[%clk 0:00:05.4]} 44. Rxd6 {[%clk
0:00:10.1]} 44... Nf4 {[%clk 0:00:05.8]} 45. Rxa6 {[%clk 0:00:10.4]} 45... Re2
{[%clk 0:00:04.8]} 46. Ra7+ {[%clk 0:00:09.4]} 46... Kf6 {[%clk 0:00:04.7]} 47.
Rf7+ {[%clk 0:00:07.8]} 47... Ke5 {[%clk 0:00:03]} 48. Rf5+ {[%clk 0:00:08.1]}
48... Kd4 {[%clk 0:00:01.7]} 49. Rxf4+ {[%clk 0:00:09]} 49... Kd3 {[%clk
0:00:02.2]} 50. Rf2 {[%clk 0:00:09.9]} 50... Re1+ {[%clk 0:00:01.7]} 51. Kg2
{[%clk 0:00:10]} 1-0

[Event "*** Titled Tuesday Blitz"]
[Site "Chess.com"]
[Date "2020.10.27"]
[Round "2"]
[White "ViktoriyaTarasova"]
[Black "Shubinkirill2003"]
[Result "0-1"]
[WhiteElo "2266"]
[BlackElo "2670"]
[TimeControl "180+1"]
[EndTime "10:18:55 PDT"]
[Termination "Shubinkirill2003 won on time"]

1. d4 {[%clk 0:03:00.9]} 1... e6 {[%clk 0:02:59.6]} 2. c4 {[%clk 0:03:01.1]}
2... Nf6 {[%clk 0:02:59.5]} 3. Nc3 {[%clk 0:03:01.1]} 3... Bb4 {[%clk
0:02:59.2]} 4. Qc2 {[%clk 0:03:00.7]} 4... d6 {[%clk 0:02:58.9]} 5. Nf3 {[%clk
0:02:58.3]} 5... Nbd7 {[%clk 0:02:58.7]} 6. Bd2 {[%clk 0:02:54.1]} 6... b6
{[%clk 0:02:58]} 7. e4 {[%clk 0:02:52.9]} 7... Bb7 {[%clk 0:02:57.4]} 8. Bd3
{[%clk 0:02:52.7]} 8... e5 {[%clk 0:02:54.3]} 9. d5 {[%clk 0:02:39.4]} 9... O-O
{[%clk 0:02:52.8]} 10. a3 {[%clk 0:02:37.9]} 10... Bxc3 {[%clk 0:02:53.2]} 11.
Bxc3 {[%clk 0:02:38.4]} 11... a5 {[%clk 0:02:53.6]} 12. Nd2 {[%clk 0:02:35.7]}
12... a4 {[%clk 0:02:53.3]} 13. O-O {[%clk 0:02:29.6]} 13... Nc5 {[%clk
0:02:49]} 14. Be2 {[%clk 0:02:28.8]} 14... Re8 {[%clk 0:02:38.5]} 15. Rfe1
{[%clk 0:02:09.4]} 15... Bc8 {[%clk 0:02:31.8]} 16. Bf1 {[%clk 0:01:51.5]} 16...
Bd7 {[%clk 0:02:31]} 17. Bb4 {[%clk 0:01:39.9]} 17... Na6 {[%clk 0:02:25.1]} 18.
Bc3 {[%clk 0:01:38.5]} 18... Qc8 {[%clk 0:02:15.6]} 19. f3 {[%clk 0:01:04]}
19... Nc5 {[%clk 0:02:05.6]} 20. Bb4 {[%clk 0:01:01.4]} 20... Nh5 {[%clk
0:02:04.1]} 21. Bxc5 {[%clk 0:00:58.4]} 21... bxc5 {[%clk 0:02:05]} 22. b4
{[%clk 0:00:43.5]} 22... axb3 {[%clk 0:02:04]} 23. Qxb3 {[%clk 0:00:37]} 23...
Qa6 {[%clk 0:02:02.5]} 24. Qc3 {[%clk 0:00:35.3]} 24... f5 {[%clk 0:01:54.7]}
25. exf5 {[%clk 0:00:33.1]} 25... Nf6 {[%clk 0:01:48.1]} 26. g4 {[%clk
0:00:31.3]} 26... Rab8 {[%clk 0:01:42.8]} 27. Bd3 {[%clk 0:00:31.1]} 27... Rf8
{[%clk 0:01:34.7]} 28. Reb1 {[%clk 0:00:30.4]} 28... h5 {[%clk 0:01:33.3]} 29.
Rxb8 {[%clk 0:00:27.6]} 29... Rxb8 {[%clk 0:01:31.9]} 30. g5 {[%clk 0:00:28]}
30... Nh7 {[%clk 0:01:32]} 31. h4 {[%clk 0:00:26.4]} 31... Rf8 {[%clk
0:01:31.7]} 32. Qc2 {[%clk 0:00:24.5]} 32... Ba4 {[%clk 0:01:23]} 33. Qb1 {[%clk
0:00:24.6]} 33... Qa5 {[%clk 0:01:17.3]} 34. Nf1 {[%clk 0:00:17]} 34... Qc3
{[%clk 0:00:58.9]} 35. f6 {[%clk 0:00:17]} 35... Qd4+ {[%clk 0:00:58.7]} 36. Kg2
{[%clk 0:00:16.9]} 36... Nxf6 {[%clk 0:00:39.2]} 37. gxf6 {[%clk 0:00:15.9]}
37... Rxf6 {[%clk 0:00:38.5]} 38. Ng3 {[%clk 0:00:15.8]} 38... Be8 {[%clk
0:00:25.9]} 39. Ra2 {[%clk 0:00:14.7]} 39... Qxh4 {[%clk 0:00:24.5]} 40. Qe1
{[%clk 0:00:11.7]} 40... Qf4 {[%clk 0:00:19.6]} 41. Be4 {[%clk 0:00:07.8]} 41...
h4 {[%clk 0:00:18.4]} 42. Nf5 {[%clk 0:00:06.3]} 42... Bd7 {[%clk 0:00:15.3]}
43. Nxh4 {[%clk 0:00:04.8]} 43... g5 {[%clk 0:00:13.1]} 44. Qg3 {[%clk
0:00:04.8]} 44... Qxg3+ {[%clk 0:00:12.5]} 45. Kxg3 {[%clk 0:00:04.9]} 45...
gxh4+ {[%clk 0:00:12.9]} 46. Kxh4 {[%clk 0:00:05.5]} 46... Rf8 {[%clk
0:00:12.8]} 47. Kg3 {[%clk 0:00:05.9]} 47... Ra8 {[%clk 0:00:12.5]} 48. Kf2
{[%clk 0:00:04.6]} 48... Kf7 {[%clk 0:00:12.4]} 49. Bd3 {[%clk 0:00:05]} 49...
Kf6 {[%clk 0:00:12.4]} 50. Ke3 {[%clk 0:00:05.6]} 50... Ra4 {[%clk 0:00:12.2]}
51. Ra1 {[%clk 0:00:06.2]} 51... Bf5 {[%clk 0:00:11.8]} 52. Be2 {[%clk 0:00:04]}
52... Bg6 {[%clk 0:00:08.9]} 53. Ra2 {[%clk 0:00:04.2]} 53... Bb1 {[%clk
0:00:08.5]} 54. Ra1 {[%clk 0:00:04.1]} 54... Bc2 {[%clk 0:00:08.7]} 55. Ra2
{[%clk 0:00:04.4]} 55... Bb3 {[%clk 0:00:08.8]} 56. Rb2 {[%clk 0:00:01.1]} 56...
Rxa3 {[%clk 0:00:07.8]} 0-1

[Event "*** Titled Tuesday Blitz"]
[Site "Chess.com"]
[Date "2020.10.27"]
[Round "2"]
[White "albano87"]
[Black "Gogolev_Artemy"]
[Result "0-1"]
[WhiteElo "2293"]
[BlackElo "2512"]
[TimeControl "180+1"]
[EndTime "10:18:59 PDT"]
[Termination "Gogolev_Artemy won on time"]

1. e4 {[%clk 0:02:54.7]} 1... c5 {[%clk 0:02:57.3]} 2. Nf3 {[%clk 0:02:54.7]}
2... Nf6 {[%clk 0:02:57.5]} 3. e5 {[%clk 0:02:49.3]} 3... Nd5 {[%clk 0:02:56.6]}
4. Nc3 {[%clk 0:02:50.2]} 4... e6 {[%clk 0:02:56.4]} 5. Nxd5 {[%clk 0:02:50.1]}
5... exd5 {[%clk 0:02:57.3]} 6. d4 {[%clk 0:02:51]} 6... Nc6 {[%clk 0:02:56.3]}
7. Be3 {[%clk 0:02:32.6]} 7... cxd4 {[%clk 0:02:38.1]} 8. Nxd4 {[%clk
0:02:32.6]} 8... d6 {[%clk 0:02:28.6]} 9. exd6 {[%clk 0:02:30.6]} 9... Bxd6
{[%clk 0:02:29.5]} 10. Qh5 {[%clk 0:02:26.3]} 10... O-O {[%clk 0:02:21.7]} 11.
O-O-O {[%clk 0:02:02.8]} 11... Ne5 {[%clk 0:02:14.1]} 12. Bd3 {[%clk 0:01:54.6]}
12... Nxd3+ {[%clk 0:02:11.4]} 13. Rxd3 {[%clk 0:01:54.7]} 13... Be6 {[%clk
0:01:43.8]} 14. Kb1 {[%clk 0:01:54.7]} 14... Qf6 {[%clk 0:01:39.5]} 15. f3
{[%clk 0:01:50.2]} 15... Rac8 {[%clk 0:01:35.4]} 16. Qg5 {[%clk 0:01:47.2]}
16... Qxg5 {[%clk 0:01:32.2]} 17. Bxg5 {[%clk 0:01:47.5]} 17... Rfe8 {[%clk
0:01:31.7]} 18. Nxe6 {[%clk 0:01:39]} 18... fxe6 {[%clk 0:01:29.9]} 19. h3
{[%clk 0:01:35.6]} 19... Kf7 {[%clk 0:01:26.5]} 20. Rhd1 {[%clk 0:01:35.2]}
20... h6 {[%clk 0:01:24]} 21. Be3 {[%clk 0:01:35.4]} 21... g5 {[%clk 0:01:21.6]}
22. Bxa7 {[%clk 0:01:34]} 22... Kf6 {[%clk 0:01:17.1]} 23. c3 {[%clk 0:01:31.8]}
23... h5 {[%clk 0:01:14.2]} 24. Bd4+ {[%clk 0:01:31.3]} 24... Be5 {[%clk
0:01:12]} 25. Re3 {[%clk 0:01:25.9]} 25... Bxd4 {[%clk 0:01:09.9]} 26. Rxd4
{[%clk 0:01:26]} 26... Kf5 {[%clk 0:01:06.4]} 27. h4 {[%clk 0:01:13.2]} 27... g4
{[%clk 0:00:54.8]} 28. f4 {[%clk 0:01:08.4]} 28... e5 {[%clk 0:00:36.9]} 29.
fxe5 {[%clk 0:00:47.8]} 29... Rxe5 {[%clk 0:00:37.8]} 30. Rxe5+ {[%clk
0:00:31.4]} 30... Kxe5 {[%clk 0:00:38.7]} 31. Rb4 {[%clk 0:00:31.8]} 31... Rf8
{[%clk 0:00:29]} 32. a4 {[%clk 0:00:32]} 32... Rf2 {[%clk 0:00:22.2]} 33. Rxb7
{[%clk 0:00:31.8]} 33... Rxg2 {[%clk 0:00:22.2]} 34. a5 {[%clk 0:00:30.3]} 34...
Rf2 {[%clk 0:00:16.2]} 35. Rg7 {[%clk 0:00:24.7]} 35... Rf6 {[%clk 0:00:14.5]}
36. Rg5+ {[%clk 0:00:23.7]} 36... Kf4 {[%clk 0:00:14.3]} 37. Rxh5 {[%clk
0:00:11.2]} 37... g3 {[%clk 0:00:14.3]} 38. Rg5 {[%clk 0:00:11.3]} 38... d4
{[%clk 0:00:10.6]} 39. cxd4 {[%clk 0:00:10.6]} 39... Kf3 {[%clk 0:00:10.5]} 40.
h5 {[%clk 0:00:09.4]} 40... g2 {[%clk 0:00:10.8]} 41. b4 {[%clk 0:00:08.2]}
41... Rf4 {[%clk 0:00:10.3]} 42. Rxg2 {[%clk 0:00:05.3]} 42... Kxg2 {[%clk
0:00:09.5]} 43. Kb2 {[%clk 0:00:05.7]} 43... Kf3 {[%clk 0:00:07.6]} 44. Kc3
{[%clk 0:00:05.8]} 44... Ke4 {[%clk 0:00:07.7]} 45. a6 {[%clk 0:00:05.8]} 45...
Kd5 {[%clk 0:00:05.5]} 46. b5 {[%clk 0:00:06.2]} 46... Rf7 {[%clk 0:00:04.8]}
47. Kb4 {[%clk 0:00:05.8]} 47... Kd6 {[%clk 0:00:04.1]} 48. Ka5 {[%clk
0:00:04.3]} 48... Kc7 {[%clk 0:00:04]} 49. b6+ {[%clk 0:00:04.2]} 49... Kc6
{[%clk 0:00:02.3]} 50. b7 {[%clk 0:00:03.2]} 50... Kc7 {[%clk 0:00:02.4]} 0-1

[Event "*** Titled Tuesday Blitz"]
[Site "Chess.com"]
[Date "2020.10.27"]
[Round "2"]
[White "nochewycandy"]
[Black "VladimirBelous"]
[Result "0-1"]
[WhiteElo "2555"]
[BlackElo "2843"]
[TimeControl "180+1"]
[EndTime "10:19:00 PDT"]
[Termination "VladimirBelous won by resignation"]

1. e4 {[%clk 0:03:00.9]} 1... c5 {[%clk 0:02:54.8]} 2. b3 {[%clk 0:02:59.7]}
2... Nc6 {[%clk 0:02:52.2]} 3. Bb2 {[%clk 0:02:59.2]} 3... d6 {[%clk 0:02:51.8]}
4. Bb5 {[%clk 0:02:55.2]} 4... Bd7 {[%clk 0:02:51.8]} 5. Ne2 {[%clk 0:02:53.4]}
5... a6 {[%clk 0:02:50.2]} 6. Bxc6 {[%clk 0:02:53.4]} 6... Bxc6 {[%clk
0:02:51.1]} 7. d3 {[%clk 0:02:54.1]} 7... e5 {[%clk 0:02:46.3]} 8. O-O {[%clk
0:02:53.1]} 8... f6 {[%clk 0:02:36.5]} 9. f4 {[%clk 0:02:49.9]} 9... Ne7 {[%clk
0:02:36.7]} 10. Nd2 {[%clk 0:02:48.7]} 10... Ng6 {[%clk 0:02:31.4]} 11. f5
{[%clk 0:02:34.7]} 11... Ne7 {[%clk 0:02:31.5]} 12. c4 {[%clk 0:02:34.9]} 12...
g5 {[%clk 0:02:20.1]} 13. fxg6 {[%clk 0:02:28.4]} 13... hxg6 {[%clk 0:02:20.1]}
14. Rxf6 {[%clk 0:02:09.1]} 14... Bh6 {[%clk 0:02:19.4]} 15. Nf1 {[%clk
0:01:55.5]} 15... Kd7 {[%clk 0:02:00.5]} 16. Bc1 {[%clk 0:01:50.4]} 16... Kc7
{[%clk 0:01:27.3]} 17. Bxh6 {[%clk 0:01:41.1]} 17... Rxh6 {[%clk 0:01:28.2]} 18.
Qd2 {[%clk 0:01:41.1]} 18... Rh7 {[%clk 0:01:21.2]} 19. Rf2 {[%clk 0:01:30.1]}
19... a5 {[%clk 0:01:10.5]} 20. Nc3 {[%clk 0:01:24.1]} 20... Qd7 {[%clk
0:01:06.9]} 21. Qg5 {[%clk 0:01:16.4]} 21... Rh5 {[%clk 0:01:02.4]} 22. Qg3
{[%clk 0:01:15.5]} 22... Rah8 {[%clk 0:01:00.9]} 23. h3 {[%clk 0:01:14.2]} 23...
Kb8 {[%clk 0:00:55]} 24. Ne3 {[%clk 0:01:13.8]} 24... g5 {[%clk 0:00:46.8]} 25.
Ng4 {[%clk 0:01:08.6]} 25... Rh4 {[%clk 0:00:40]} 26. Rf7 {[%clk 0:01:08]} 26...
Qe6 {[%clk 0:00:39.4]} 27. Raf1 {[%clk 0:01:07.4]} 27... Ng6 {[%clk 0:00:39.1]}
28. R7f6 {[%clk 0:00:54.7]} 28... Qe8 {[%clk 0:00:39.1]} 29. Rxd6 {[%clk
0:00:49.5]} 29... Nf4 {[%clk 0:00:39.5]} 30. Nf2 {[%clk 0:00:24.6]} 30... Qe7
{[%clk 0:00:36.4]} 31. Rxc6 {[%clk 0:00:22]} 31... bxc6 {[%clk 0:00:37.3]} 32.
Qe3 {[%clk 0:00:20.5]} 32... Qd6 {[%clk 0:00:19.9]} 33. Na4 {[%clk 0:00:19.6]}
33... Qd4 {[%clk 0:00:19.9]} 34. Qxd4 {[%clk 0:00:18.5]} 34... cxd4 {[%clk
0:00:20.8]} 35. Nc5 {[%clk 0:00:15.5]} 35... Ne2+ {[%clk 0:00:19.3]} 36. Kh2
{[%clk 0:00:14.5]} 36... g4 {[%clk 0:00:19.1]} 37. g3 {[%clk 0:00:14.6]} 37...
R4h7 {[%clk 0:00:10.7]} 38. h4 {[%clk 0:00:14.6]} 38... Rf7 {[%clk 0:00:10.3]}
39. Kg2 {[%clk 0:00:13.8]} 39... Kc8 {[%clk 0:00:08.9]} 40. Nxg4 {[%clk
0:00:12.3]} 40... Rxf1 {[%clk 0:00:08.7]} 41. Kxf1 {[%clk 0:00:13.2]} 41...
Nxg3+ {[%clk 0:00:09.2]} 42. Kg2 {[%clk 0:00:14.1]} 42... Ne2 {[%clk 0:00:09.1]}
43. Nxe5 {[%clk 0:00:13.5]} 43... Rxh4 {[%clk 0:00:08]} 44. Nxc6 {[%clk
0:00:13.3]} 44... Rh5 {[%clk 0:00:07]} 45. Ne6 {[%clk 0:00:09.5]} 45... Kd7
{[%clk 0:00:05]} 46. Nexd4 {[%clk 0:00:09.8]} 46... Nc1 {[%clk 0:00:04.9]} 47.
Kf2 {[%clk 0:00:06.1]} 47... Nxa2 {[%clk 0:00:05.2]} 48. Nxa5 {[%clk 0:00:05.9]}
48... Rxa5 {[%clk 0:00:04.6]} 49. Ke3 {[%clk 0:00:05.5]} 49... Nb4 {[%clk
0:00:05.1]} 50. Nb5 {[%clk 0:00:05.6]} 50... Nc2+ {[%clk 0:00:04.4]} 51. Kd2
{[%clk 0:00:05.3]} 51... Ra2 {[%clk 0:00:05.3]} 52. Kc3 {[%clk 0:00:05.6]} 52...
Ne1 {[%clk 0:00:05.4]} 53. d4 {[%clk 0:00:05.1]} 53... Re2 {[%clk 0:00:05.2]}
54. e5 {[%clk 0:00:05.2]} 54... Re3+ {[%clk 0:00:05.3]} 55. Kb4 {[%clk
0:00:05.6]} 55... Nc2+ {[%clk 0:00:04.2]} 56. Kc5 {[%clk 0:00:05.7]} 56... Rxb3
{[%clk 0:00:04.6]} 57. d5 {[%clk 0:00:05.1]} 57... Ne3 {[%clk 0:00:05]} 58. e6+
{[%clk 0:00:06]} 58... Ke7 {[%clk 0:00:05.4]} 59. Nd4 {[%clk 0:00:05.1]} 59...
Rc3 {[%clk 0:00:05.2]} 60. d6+ {[%clk 0:00:05.5]} 60... Kf6 {[%clk 0:00:04.6]}
61. d7 {[%clk 0:00:03.3]} 61... Rxc4+ {[%clk 0:00:04.9]} 62. Kd6 {[%clk
0:00:03.7]} 62... Rxd4+ {[%clk 0:00:05.6]} 63. Kc7 {[%clk 0:00:03.7]} 63... Ke7
{[%clk 0:00:06.5]} 64. Kc8 {[%clk 0:00:03.5]} 64... Nf5 {[%clk 0:00:06.2]} 0-1